Cogmind - Beta 13 @@@ ROGUE MODE // 2024.05.05 @ 15:18:36 Player: Compound1080 Result: Destroyed by P-80 Master with Gamma Rifle Performance ------------- Evolutions (7) 3500 Regions Visited (9) 1800 Robots Destroyed (33) 165 Value Destroyed (900) 900 Prototype IDs (3) 60 Alien Tech Used (0) 0 Bonus (500) 500 TOTAL SCORE: 6925 Bonus ------- Entered DSFs 500 Cogmind --------- Core Integrity 0/1300 Matter 300/300 Energy 100/100 System Corruption 11% Temperature Cool (0) Movement Core (50) Location -3/Research Parts ------- > --- POWER (3) -------- (None) > --- PROPULSION (6) --- Gyrokinetic Inverter > --- UTILITY (10) ----- Advanced Visual Processing Unit Advanced Signal Interpreter Graphene Brace > --- WEAPON (2) ------- (None) > --- INVENTORY (5) ---- VTOL Module VTOL Module Force Rifle Advanced Plasma Cannon Peak State ------------ > --- POWER ------------ Light Nuclear Core Improved Deuterium Engine > --- PROPULSION ------- Gyrokinetic Inverter Gyrokinetic Inverter Gyrokinetic Inverter Gyrokinetic Inverter VTOL Module > --- UTILITY ---------- Structural Scanner Advanced Visual Processing Unit Advanced Signal Interpreter Advanced Melee Analysis Suite Transmission Jammer Graphene Brace Hacking Suite Hacking Suite > --- WEAPON ----------- Improved KE Penetrator Great Axe > --- INVENTORY -------- VTOL Module VTOL Module Force Rifle Advanced Plasma Cannon [Rating: 76] Favorites ----------- Power Ion Engine Engine Ion Engine Power Core Light Nuclear Core Propulsion Gyrokinetic Inverter Leg Aluminum Leg Hover Unit Gyrokinetic Inverter Flight Unit Flight Unit Utility Visual Processing Unit Device Transmission Jammer Storage Small Storage Unit Processor Visual Processing Unit Hackware Hacking Suite Protection Core Shielding Weapon Light Assault Rifle Energy Gun EM Shotgun Energy Cannon Improved EM Pulse Cannon Ballistic Gun Light Assault Rifle Launcher Precision Grenade Launcher Slashing Weapon Scythe Build | -11 -10 -9 -8 -7 -6 -6 -5 -4 -3 ------- Run | Yrd Mat Mat Mat Fac Fac DSF Fac Fac Res Slots Evolved 14 | . . 2 2 2 2 . 2 2 2 Power 2 | . . . . . 1 . . . 1 Propulsion 4 | . . 1 1 . . . 1 1 . Utility 8 | . . 1 1 2 1 . 1 1 1 Weapon . | . . . . . . . . . . Parts Attached 62 | 4 5 4 14 10 6 9 5 5 . Power 6 | 1 1 . 1 1 . 1 1 . . Engine 4 | 1 1 . 1 . . 1 . . . Core 2 | . . . . 1 . . 1 . . Reactor . | . . . . . . . . . . Propulsion 22 | 2 . 2 9 3 . 4 1 1 . Treads . | . . . . . . . . . . Leg 4 | 2 . 2 . . . . . . . Wheel . | . . . . . . . . . . Hover 4 | . . . . . . 3 . 1 . Flight 14 | . . . 9 3 . 1 1 . . Utility 20 | 1 2 1 3 4 3 1 2 3 . Device 6 | . . . 1 1 2 . 1 1 . Storage 3 | 1 1 . 1 . . . . . . Processor 6 | . 1 1 1 . 1 1 . 1 . Hackware 3 | . . . . 1 . . 1 1 . Protection 2 | . . . . 2 . . . . . Artifact . | . . . . . . . . . . Weapon 14 | . 2 1 1 2 3 3 1 1 . Energy Gun 2 | . . 1 . . 1 . . . . Energy Cannon 1 | . . . . . 1 . . . . Ballistic Gun 4 | . 2 . . 1 . . 1 . . Ballistic Cannon . | . . . . . . . . . . Launcher 2 | . . . . 1 . 1 . . . Special Weapon . | . . . . . . . . . . Impact Weapon . | . . . . . . . . . . Slashing Weapon 5 | . . . 1 . 1 2 . 1 . Piercing Weapon . | . . . . . . . . . . Special Melee Weapon . | . . . . . . . . . . Unidentified Prototypes 3 | . . . . 1 1 . 1 . . Parts Lost 38 | . 2 1 6 7 . 8 1 . 13 Power 6 | . 1 . 1 1 . 1 . . 2 Propulsion 16 | . 1 . 4 3 . 4 . . 4 Utility 12 | . . . 1 3 . 3 . . 5 Weapon 4 | . . 1 . . . . 1 . 2 Highest Loss Streak 12 | . 2 1 5 7 . 6 1 . 12 To Critical Strikes . | . . . . . . . . . . Average Slot Usage (%) 79 | . 94 89 87 77 79 56 59 74 71 Engine 7 | . 13 11 8 3 . 2 5 5 1 Core 1 | . . . . 2 6 1 1 5 3 Leg 9 | . 26 25 . . . . . . . Hover 6 | . . . . . . 9 17 17 17 Flight 9 | . . . 34 25 26 9 1 5 3 Device 6 | . . . 9 4 13 8 8 13 12 Storage 6 | . 14 11 9 7 6 1 . . . Processor 14 | . 12 22 17 15 13 13 11 12 13 Hackware 2 | . . . . 3 . . 5 6 9 Protection 1 | . . . . 5 6 4 . . . Ballistic Gun 8 | . 26 14 . 5 1 . 2 5 3 Slashing Weapon 2 | . . . 8 1 4 2 2 2 3 Naked Turns . | . . . . . . . . . . Heaviest Build 28 | 10 18 20 14 14 19 20 23 28 28 Greatest Support 44 | 20 20 30 16 16 16 33 33 44 33 Greatest Overweight (x) 1 | 1 1 . 1 1 1 1 . . 1 Average Overweight (x) . | . . . . . . . . . . Largest Inventory Capacity 10 | 8 10 10 10 8 8 8 5 5 5 Average Capacity 7 | 6 9 10 8 8 8 5 5 5 5 Most Carried 10 | 6 10 10 10 8 8 8 5 5 4 Average Carried 6 | 4 9 8 7 5 6 5 3 4 4 Final Capacity 10 | 8 10 10 8 8 8 5 5 5 5 Final Carried 10 | 6 9 10 8 8 6 3 5 4 4 Class Distribution -------------------- 44% | Mutant 21% | Scavenger-Mutant 13% | Scavenger-Sprinter 7% | Scavenger-Gladiator 6% | Gladiator 5% | Hacker-Mutant Dominant Class ---------------- Mutant | -10/Materials Mutant | -9/Materials Scavenger-Sprinter | -8/Materials Scavenger-Sprinter | -7/Factory Scavenger-Gladiator | -6/Factory Mutant | -6/DSF Gladiator | -5/Factory Scavenger-Mutant | -4/Factory Hacker-Mutant | -3/Research Resources | -11 -10 -9 -8 -7 -6 -6 -5 -4 -3 ----------- Run | Yrd Mat Mat Mat Fac Fac DSF Fac Fac Res Matter Collected 1034 | 234 170 54 135 67 . 208 98 63 5 Remotely . | . . . . . . . . . . Salvage Created 1140 | . 196 87 241 107 . 367 142 . . Parts 75 | . 17 5 20 7 . 13 13 . . Haulers Intercepted . | . . . . . . . . . . Recyclers Shooed 1 | . . . 1 . . . . . . Parts Field Recycled . | . . . . . . . . . . Retrieved Matter . | . . . . . . . . . . Parts Self-Destructed . | . . . . . . . . . . Prevented . | . . . . . . . . . . Kills | -11 -10 -9 -8 -7 -6 -6 -5 -4 -3 ------- Run | Yrd Mat Mat Mat Fac Fac DSF Fac Fac Res Combat Hostiles Destroyed 26 | . 5 2 7 4 . 4 4 . . Melee 10 | . . . 7 . . 3 . . . Guns 15 | . 5 2 . 4 . . 4 . . AOE 1 | . . . . . . 1 . . . Classes Destroyed 10 | . 3 . 3 1 . 2 1 . . Worker 1 | . . . 1 . . . . . . Builder 2 | . . . . . . . 2 . . Operator 1 | . . . . 1 . . . . . Watcher 3 | . 3 . . . . . . . . Swarmer 15 | . 3 . 4 4 . . 4 . . Grunt 6 | . 2 2 1 . . 1 . . . Sentry 1 | . . . 1 . . . . . . Specialist 2 | . . . . . . 2 . . . Hunter 1 | . . . 1 . . . . . . Heavy 1 | . . . . . . 1 . . . Best Kill Streak 5 | . 4 1 5 3 . 1 5 . . Combat Bots Only 4 | . 3 1 4 3 . 1 4 . . Max Kills in Single Turn 1 | . 1 1 1 1 . 1 1 . . Gunslinging . | . . . . . . . . . . Exploded 1 | . . . . . . 1 . . . Melee 1 | . . . 1 . . 1 . . . Uniques/NPCs Destroyed . | . . . . . . . . . . Combat | -11 -10 -9 -8 -7 -6 -6 -5 -4 -3 -------- Run | Yrd Mat Mat Mat Fac Fac DSF Fac Fac Res Hostile Shots Fired 394 | . 57 12 70 48 . 42 31 4 130 Missed 133 | . 15 5 32 10 . 17 9 3 42 Damage Taken 4649 | . 486 77 373 567 . 772 334 34 2006 Core 2081 | . 99 . 94 88 . 341 111 24 1324 Absorbed by Shields . | . . . . . . . . . . Redirected to Shielding 51 | . . . . . . 51 . . . Core Remaining (%) 84 | 100 60 100 82 87 . 59 88 97 . Volleys Fired 90 | . 31 9 . 31 . 12 7 . . Largest 2 | . 2 2 . 1 . 1 1 . . Hottest 65 | . 40 65 . 20 . 36 33 . . Shots Fired 129 | . 62 17 . 31 . 12 7 . . Gun 117 | . 62 17 . 31 . . 7 . . Cannon . | . . . . . . . . . . Launcher 12 | . . . . . . 12 . . . Special . | . . . . . . . . . . Kinetic 108 | . 62 8 . 31 . . 7 . . Thermal . | . . . . . . . . . . Explosive 12 | . . . . . . 12 . . . Electromagnetic 9 | . . 9 . . . . . . . Robot Hit Streak 9 | . 8 6 . 9 . 4 2 . . Robot Miss Streak 4 | . 3 4 . 2 . 1 3 . . Penetration Max . | . . . . . . . . . . Secondary Targets 1 | . 1 . . . . . . . . Max Gunslinging Chain 1 | . 1 . . . . . . . . Shots Hit Robots 121 | . 41 12 21 27 . 13 4 . 3 Core Hits 65 | . 12 4 8 10 . 25 5 . 1 Critical Kills 1 | . . . . . . . 1 . . Critical Parts Destroyed . | . . . . . . . . . . Critical Strikes 4 | . . . 2 . . 1 1 . . Destroy 1 | . . . . . . . 1 . . Sever 3 | . . . 2 . . 1 . . . Melee Attacks 63 | . . . 45 3 1 4 4 2 4 Impact . | . . . . . . . . . . Slashing 63 | . . . 45 3 1 4 4 2 4 Piercing . | . . . . . . . . . . Sneak Attacks 7 | . . . 3 . . 2 1 . 1 Combat Hostiles 3 | . . . 1 . . 2 . . . Follow-up Attacks . | . . . . . . . . . . Damage Inflicted 3203 | . 457 158 773 336 . 1048 241 21 169 Guns 925 | . 457 152 . 198 . . 118 . . Cannons . | . . . . . . . . . . Explosions 719 | . . . . . . 719 . . . Melee 1532 | . . . 773 138 . 329 123 . 169 Ramming 27 | . . 6 . . . . . 21 . Kinetic 832 | . 457 59 . 198 . . 118 . . Thermal . | . . . . . . . . . . Explosive 719 | . . . . . . 719 . . . Electromagnetic 93 | . . 93 . . . . . . . Impact . | . . . . . . . . . . Slashing 1532 | . . . 773 138 . 329 123 . 169 Piercing . | . . . . . . . . . . Highest Corruption 11 | . . . . . . . . . 11 Average Corruption 6 | . . . . . . . . . 6 Corruption Purged . | . . . . . . . . . . Corruption Blocked . | . . . . . . . . . . Effects 1 | . . . . . . . . . 1 Message Errors 1 | . . . . . . . . . 1 Overload Shots . | . . . . . . . . . . Overflow Damage 207 | . . . 56 10 . . 83 . 58 Projectiles . | . . . . . . . . . . Explosions . | . . . . . . . . . . Melee 207 | . . . 56 10 . . 83 . 58 Knockbacks . | . . . . . . . . . . Impact . | . . . . . . . . . . Kinetic . | . . . . . . . . . . Secondary . | . . . . . . . . . . Self-Inflicted Damage 56 | . . . . . . 46 . 10 . Shots 1 | . . . . . . 1 . . . Rammed 1 | . . . . . . . . 1 . Targets Rammed 2 | . . 1 . . . . . 1 . Kicked 1 | . . 1 . . . . . . . Crushed . | . . . . . . . . . . Highest Temperature 87 | . 87 6 3 . . . 2 69 4 Average Temperature 22 | . 43 3 3 . . . 1 38 4 Received Heat Transfer 426 | . 270 42 18 . . 36 . . 60 Siege Activations . | . . . . . . . . . . Robots Corrupted . | . . . . . . . . . . Combat Hostiles . | . . . . . . . . . . Parts Fried . | . . . . . . . . . . Impact Corruptions . | . . . . . . . . . . Robots Melted . | . . . . . . . . . . Combat Hostiles . | . . . . . . . . . . Parts Melted . | . . . . . . . . . . Heat Transferred . | . . . . . . . . . . Parts Sabotaged . | . . . . . . . . . . Parts Stolen . | . . . . . . . . . . Parts Stripped . | . . . . . . . . . . Power Chain Reactions . | . . . . . . . . . . Alert | -11 -10 -9 -8 -7 -6 -6 -5 -4 -3 ------- Run | Yrd Mat Mat Mat Fac Fac DSF Fac Fac Res Peak Influence 245 | . 141 82 245 196 96 180 218 206 203 Initial 111 | . . 16 34 111 95 67 94 106 108 Average 107 | . 67 38 149 158 95 109 150 147 137 Maximum Alert Level 1 | . . . 1 . . . 1 1 1 Low Security (%) 88 | 100 100 100 54 100 100 100 58 85 97 Level 1 11 | . . . 45 . . . 41 14 2 Level 2 . | . . . . . . . . . . Level 3 . | . . . . . . . . . . Level 4 . | . . . . . . . . . . Level 5 . | . . . . . . . . . . High Security . | . . . . . . . . . . Max Security . | . . . . . . . . . . Squads Dispatched 4 | . 1 1 . 1 . . . . 1 Investigation 2 | . 1 1 . . . . . . . Extermination . | . . . . . . . . . . Reinforcement 2 | . . . . 1 . . . . 1 Assault . | . . . . . . . . . . Garrison . | . . . . . . . . . . Intercept . | . . . . . . . . . . Searches Triggered . | . . . . . . . . . . Construction Impeded . | . . . . . . . . . . Haulers Reinforced . | . . . . . . . . . . Active Scanning Responses . | . . . . . . . . . . Cargo Convoy Interrupts . | . . . . . . . . . . Stealth | -11 -10 -9 -8 -7 -6 -6 -5 -4 -3 --------- Run | Yrd Mat Mat Mat Fac Fac DSF Fac Fac Res Distress Signals 4 | . 2 . 1 . . . . . 1 Communications Jammed 16 | . . . . . . 11 . . 5 Distress Signals 5 | . . . . . . . . . 5 Times Spotted 68 | . 8 4 10 8 . 10 6 4 18 Peak Tracking Total 12 | . 4 2 5 4 . 4 5 2 12 Tactical Retreats 13 | . . 1 3 1 . 2 1 3 2 Traps | -11 -10 -9 -8 -7 -6 -6 -5 -4 -3 ------- Run | Yrd Mat Mat Mat Fac Fac DSF Fac Fac Res Traps Triggered 3 | . 1 . . . . 1 . . 1 Indirectly . | . . . . . . . . . . Trap Hack Attempts . | . . . . . . . . . . Triggered . | . . . . . . . . . . Disarmed . | . . . . . . . . . . Reprogrammed . | . . . . . . . . . . Reused . | . . . . . . . . . . Traps Extracted . | . . . . . . . . . . Installed . | . . . . . . . . . . Triggered . | . . . . . . . . . . Machines | -11 -10 -9 -8 -7 -6 -6 -5 -4 -3 ---------- Run | Yrd Mat Mat Mat Fac Fac DSF Fac Fac Res Machines Disabled . | . . . . . . . . . . Max in Single Turn . | . . . . . . . . . . Machines Repaired . | . . . . . . . . . . Machines Dismantled . | . . . . . . . . . . Machines Sabotaged . | . . . . . . . . . . Overloaded Fab Kills . | . . . . . . . . . . Hacking | -11 -10 -9 -8 -7 -6 -6 -5 -4 -3 --------- Run | Yrd Mat Mat Mat Fac Fac DSF Fac Fac Res Machines Accessed 14 | . 4 4 2 2 1 . . 1 . Terminals 14 | . 4 4 2 2 1 . . 1 . Fabricators . | . . . . . . . . . . Repair Stations . | . . . . . . . . . . Recycling Units . | . . . . . . . . . . Scanalyzers . | . . . . . . . . . . Garrison Access . | . . . . . . . . . . Total Hacks 38 | . 10 13 5 7 1 . . 2 . Successful 15 | . 5 4 2 2 1 . . 1 . Failed 23 | . 5 9 3 5 . . . 1 . Catastrophic 3 | . . . 1 2 . . . . . Database Lockouts . | . . . . . . . . . . Manual 4 | . . 1 1 2 . . . . . Terminals 38 | . 10 13 5 7 1 . . 2 . Fabricators . | . . . . . . . . . . Repair Stations . | . . . . . . . . . . Recycling Units . | . . . . . . . . . . Scanalyzers . | . . . . . . . . . . Garrison Access . | . . . . . . . . . . Terminal Hacks 15 | . 5 4 2 2 1 . . 1 . Record 3 | . . . 1 1 . . . 1 . Open DSF 1 | . . . . . 1 . . . . Emergency Access Points 1 | . 1 . . . . . . . . Alert Level 1 | . . 1 . . . . . . . Locate Traps 6 | . 2 2 1 1 . . . . . Maintenance Status 1 | . 1 . . . . . . . . Transport Status 1 | . 1 . . . . . . . . Zone Layout 1 | . . 1 . . . . . . . Fabricator Hacks . | . . . . . . . . . . Repair Station Hacks . | . . . . . . . . . . Recycling Unit Hacks . | . . . . . . . . . . Scanalyzer . | . . . . . . . . . . Garrison Access Hacks . | . . . . . . . . . . Unauthorized Hacks . | . . . . . . . . . . Terminals . | . . . . . . . . . . Fabricators . | . . . . . . . . . . Repair Stations . | . . . . . . . . . . Recycling Units . | . . . . . . . . . . Scanalyzers . | . . . . . . . . . . Garrison Access . | . . . . . . . . . . Data Cores Recovered 1 | . . . . 1 . . . . . Used 1 | . . . . 1 . . . . . Hacking Detections 10 | . 3 2 2 2 . . . 1 . Full Trace Events 1 | . . 1 . . . . . . . Feedback Events . | . . . . . . . . . . Feedback Blocked . | . . . . . . . . . . Robot Schematics Acquired . | . . . . . . . . . . Robots Built . | . . . . . . . . . . Authchips . | . . . . . . . . . . Time . | . . . . . . . . . . Total Robot Build Rating . | . . . . . . . . . . Part Schematics Acquired . | . . . . . . . . . . Parts Built . | . . . . . . . . . . Authchips . | . . . . . . . . . . Time . | . . . . . . . . . . Total Part Build Rating . | . . . . . . . . . . Parts Repaired . | . . . . . . . . . . Time . | . . . . . . . . . . Parts Recycled . | . . . . . . . . . . Recycled Matter . | . . . . . . . . . . Retrieved Matter . | . . . . . . . . . . Retrieved Components . | . . . . . . . . . . Parts Scanalyzed . | . . . . . . . . . . Part Schematics Acquired . | . . . . . . . . . . Parts Damaged . | . . . . . . . . . . Bothacking | -11 -10 -9 -8 -7 -6 -6 -5 -4 -3 ------------ Run | Yrd Mat Mat Mat Fac Fac DSF Fac Fac Res Used RIF Installer . | . . . . . . . . . . Robots Hacked . | . . . . . . . . . . Non-combat . | . . . . . . . . . . Combat . | . . . . . . . . . . Robot Hacks Applied . | . . . . . . . . . . Relay Couplers Released . | . . . . . . . . . . Fabnet Peak Effective % . | . . . . . . . . . . Robots Rewired . | . . . . . . . . . . Allies Hacked . | . . . . . . . . . . Hacks Repelled . | . . . . . . . . . . Allies | -11 -10 -9 -8 -7 -6 -6 -5 -4 -3 -------- Run | Yrd Mat Mat Mat Fac Fac DSF Fac Fac Res Total Allies . | . . . . . . . . . . Largest Group . | . . . . . . . . . . Highest-Rated Group . | . . . . . . . . . . Highest-Rated Ally . | . . . . . . . . . . Total Orders . | . . . . . . . . . . Ally Attacks . | . . . . . . . . . . Total Damage . | . . . . . . . . . . Kills . | . . . . . . . . . . Allies Corrupted . | . . . . . . . . . . Allies Melted . | . . . . . . . . . . Intel | -11 -10 -9 -8 -7 -6 -6 -5 -4 -3 ------- Run | Yrd Mat Mat Mat Fac Fac DSF Fac Fac Res Robot Analysis Total . | . . . . . . . . . . Derelict Logs Recovered . | . . . . . . . . . . Drone Launches . | . . . . . . . . . . Drone Recoveries . | . . . . . . . . . . Exploration | -11 -10 -9 -8 -7 -6 -6 -5 -4 -3 ------------- Run | Yrd Mat Mat Mat Fac Fac DSF Fac Fac Res Turns Passed 2245 | 66 460 286 277 184 108 222 235 214 193 Spaces Moved 2171 | 48 276 195 254 245 86 172 318 323 254 Core 18 | 16 . . . . . . . . 2 Treads . | . . . . . . . . . . Legs 503 | 32 276 195 . . . . . . . Wheels . | . . . . . . . . . . Hover 990 | . . . . . . 97 318 323 252 Flight 660 | . . . 254 245 86 75 . . . Fastest Speed 29 | 50 120 120 31 29 29 31 62 58 62 Average Speed 70 | 110 125 120 31 29 68 77 62 61 64 Slowest Speed 190 | 120 190 120 114 120 109 114 62 62 100 Overloaded Moves . | . . . . . . . . . . Propulsion Burnouts . | . . . . . . . . . . Robots Hopped 1 | . . . . 1 . . . . . Cave-ins Triggered . | . . . . . . . . . . Exploration Rate (%) 25 | 4 52 23 34 8 2 88 12 17 13 Regions Visited 9 Branch Regions . Pre-discovered Areas . | . . . . . . . . . . Known Exits Taken 3 | . . 1 . . 1 . . 1 . Unknown Exits Taken 5 | 1 1 . 1 1 . . 1 . . Scrap Searched . | . . . . . . . . . . Spaces Dug 20 | . . . 16 . 1 . 1 2 . Terrain Destroyed 45 | . . . 16 . 1 24 2 2 . Melee 20 | . . . 16 . 1 . 1 2 . Projectile 1 | . . . . . . . 1 . . AOE 24 | . . . . . . 24 . . . Terrain Rammed . | . . . . . . . . . . Walls Destroyed . | . . . . . . . . . . Machines Disabled . | . . . . . . . . . . Actions | -11 -10 -9 -8 -7 -6 -6 -5 -4 -3 --------- Run | Yrd Mat Mat Mat Fac Fac DSF Fac Fac Res Total 2663 | 61 337 229 386 326 135 239 339 333 278 Wait 192 | . 11 16 50 26 35 33 1 . 20 Move 2160 | 47 275 194 253 242 85 171 317 322 254 Hop 1 | . . . . 1 . . . . . Pick Up 56 | 10 10 4 12 9 1 2 5 3 . Fast Attach 20 | . 1 1 5 . 4 6 2 1 . Attach 37 | 4 3 2 7 10 2 2 3 4 . Detach 5 | . . . . 2 2 1 . . . Swap 5 | . 1 1 2 . . 1 . . . Drop 29 | . 5 1 12 2 5 4 . . . Fire 90 | . 31 9 . 31 . 12 7 . . Melee 63 | . . . 45 3 1 4 4 2 4 Ram 1 | . . . . . . . . 1 . Kick 1 | . . 1 . . . . . . . Crush . | . . . . . . . . . . Escape Stasis 3 | . . . . . . 3 . . . Rewire . | . . . . . . . . . . Trap . | . . . . . . . . . . Miscellaneous . | . . . . . . . . . . Route ------- -11/Scrapyard -10/Materials (discovered 2 exits: *Mat / [*Min]) -9/Materials -8/Materials -7/Factory -6/Factory -6/DSF -5/Factory -4/Factory -3/Research (discovered 1 exit: *Arm) History --------- Turn | Location | Event 8 | -11/Scrapyard | Discovered new exit (range 16) 67 | -11/Scrapyard | Entered Materials 287 | -10/Materials | Discovered new exit (range 13) 318 | -10/Materials | Build established: Mutant 520 | -10/Materials | Discovered new exit (range 5) 527 | -10/Materials | Entered another Materials area 527 | -9/Materials | Evolved 2 slots: Propulsion x1, Utility x1 761 | -9/Materials | Discovered new exit (range 18) 812 | -9/Materials | Identified exit to Materials 813 | -9/Materials | Entered another Materials area 813 | -8/Materials | Evolved 2 slots: Propulsion x1, Utility x1 1027 | -8/Materials | Lost 5 parts (1p3n1u) 1089 | -8/Materials | Discovered new exit (range 5) 1090 | -8/Materials | Entered Factory 1090 | -7/Factory | Evolved 2 slots: Utility x2 1221 | -7/Factory | Lost 7 parts (1p3n3u) 1243 | -7/Factory | Discovered new exit (range 16) 1274 | -7/Factory | Entered another Factory area 1274 | -6/Factory | Evolved 2 slots: Power x1, Utility x1 1382 | -6/Factory | Identified exit to DSF 1382 | -6/Factory | Entered DSF 1420 | -6/DSF | Additional patrols routed to DSF 1497 | -6/DSF | Lost 6 parts (1p3n2u) 1565 | -6/DSF | Discovered new exit (range 14) 1604 | -6/DSF | Entered Factory 1604 | -5/Factory | Evolved 2 slots: Propulsion x1, Utility x1 1768 | -5/Factory | Discovered new exit (range 18) 1839 | -5/Factory | Entered another Factory area 1839 | -4/Factory | Evolved 2 slots: Propulsion x1, Utility x1 2042 | -4/Factory | Discovered new exit (range 9) 2050 | -4/Factory | Build established: Scavenger-Mutant 2052 | -4/Factory | Identified exit to Research 2053 | -4/Factory | Entered Research 2053 | -3/Research | Evolved 2 slots: Power x1, Utility x1 2063 | -3/Research | Discovered new exit (range 5) 2065 | -3/Research | Identified exit to Armory 2206 | -3/Research | Spotted B-86 Titan 2221 | -3/Research | Core integrity fell below 50% 2241 | -3/Research | Core integrity fell below 20% 2241 | -3/Research | System corruption reached 10% 2246 | -3/Research | Destroyed by P-80 Master with Gamma Rifle Last Messages --------------- 02224_ K-01 Serf collects debris. 02226_ R-10 Processor collects Welding Torch. 02228_ =P3IXY>NTQFQXX4E=TT=JO UDAFEU7L& 02228_ Acquired 5 matter. 02228_ P-80 Master resets A-15 Conveyor, system corruption cleaned. 02229_ K-01 Serf collects debris. 02230_ R-10 Processor collects Lgt. Ion Engine. 02231_ U-05 Engineer lays Concrete. 02232_ Terminal disabled. 02233_ K-01 Serf collects debris. 02234_ R-10 Processor collects Structural Scanner. 02236_ K-01 Serf collects debris. 02237_ Gyrokinetic Inverter destroyed. 02241_ Hacking Suite destroyed. 02241_ S-43 Plague suffers critical hit (Destroy). 02241_ K-01 Serf collects debris. 02243_ Hacking Suite destroyed. Map ----- +----------------------------------------------------+ | ?????????????????????????????????????????????????? | | ?????????????????????????????????????????????????? | | ?????????????????????????????????????????????????? | | ?????????????????????????????????????????????????? | | ?????????????????????????????????????????????????? | | ?????????????????????????????????????????????????? | | ??????????????????????????????????????????######?? | | ?????????????????????????????????????????? #?? | | ?????????????????????????????????????????? T?? | | ?????????????????????????????????????????? ?? | | ?????????????????????????????????????????? #?? | | ??????????????????????????????????????????# #?? | | ??????????????????????????????????????????# #?? | | ??????????????????????????????????????????# #?? | | ??????????????????????????????????????????# #?? | | ???????????? ?????????????????????????????# # ? | | ???????????? ????????????????????????????# # ? | | ?????????????""???????????????????????????+ # ? | | ????????????""" ?????????????????????????# # ? | | ???????????""""" ??????????????????????? # # | | ???????? """" ######################## ### | | ???????# ! k | | ???????# s s BB | | ???????# ps p B ^ | | ???????????"""" s g % = | | ???????????"""" @ ############### %! | | ????????????"""" #??????????#"" ! ]! | | ????????????""" R #??????????#"T % ]! | | ????????? #?##########"" ]! | | ???????? #?############" | | ???????? ##### #?## ! # | | ???????? ########+#????# #?## # | | ????????#+????????????????# #### ""### % != | | ??????????????????????????# #### ""###% =% | | ??????????????????????????? ## Y"### | | ???????????????????????????## ## ""### | | ???????????????????????????## ## ""### | | ???????????????????????????## ## ### ! | | ???????????????????????????## ## ### | | ?????????????? # """"" #### ######+###### ### | | ?????????????? ############## # | | ?????????????? # ! + # ? | | ?????????????? # # # ? | | ?????????????? # """"" # # ? | | ?????????????? # """"" # ###+########### ? | | ???##########?## """"" # # ###### ? | | #############?## # # = ##?????? | | ##### ##?## # # ##?????? | | ### * ##?## """"" # # ##?????? | | ### ##?## """"" # # ##?????? | +----------------------------------------------------+ Best States ------------- Heat Dissipation 46 Energy Generation 25 Energy Capacity 350 Matter Stores 300 Matter Capacity 300 Sight Range 20 Terrain Scan Density 10 Jamming Range 12 Armor Coverage 150 Core Shielding 20 Evasion (%) 74 Melee Accuracy 8 Offensive Hacking 20 Item Schematics ----------------- None Robot Schematics ------------------ None Fabricated ------------ Nothing Alien Tech Used ----------------- None Achievements -------------- Dangerous Findings Dynamic Key Challenges ------------ None Game ------ Seed ZhirovCoordinationCoupler Manual? 0 Play Time 00:55:37 Cumulative 7.2 hours Start 2024.05.05 @ 14:19:28 End 2024.05.05 @ 15:18:36 Sessions 1 Manual Loads 0 Difficulty Rogue Special Mode None Game No. 15 Rogue 15 Adventurer 0 Explorer 0 Win Type - Total 0 Types 0/0/0/0/0/0/0/0/0 Lore% 12 Gallery% 11 Achievement% 10 Wizard Run 0 Options --------- Layout 1 ASCII 0 Keyboard 0 Movement Mouse Keybinds 0 Fullscreen 2 Font 24/Smallcaps Map View 50x35 Zoom Use 0% Tactical HUD 1 Map Filters NONE Filters NONE Steam 1 RUN: 6188df3f-f2fe-44b4-b7a3-38a74da80ce5